bitfinex/quotes_BTCUSD_20230115
["timestamp","ask_amount","ask_price","bid_price","bid_amount"]
[1673748333961,1.869961,20780.0,20779.0,0.05805305]
[1673748334989,2.169961,20780.0,20779.0,0.05805305]
[1673748335521,1.869961,20780.0,20779.0,0.05805305]
[1673748336231,1.854961,20780.0,20779.0,0.05805305]
[1673748336518,2.154961,20780.0,20779.0,0.05805305]
[1673748336773,2.8745159,20780.0,20779.0,0.05805305]
[1673748337031,2.8830159,20780.0,20779.0,0.05805305]
[1673748337283,3.1830159,20780.0,20779.0,0.05805305]
[1673748337539,2.94066269,20780.0,20779.0,0.05805305]
[1673748339310,2.64066269,20780.0,20779.0,0.05805305]
[1673748339557,2.94066269,20780.0,20779.0,0.05805305]
[1673748340586,2.94020269,20780.0,20779.0,0.05805305]
[1673748341348,2.64020269,20780.0,20779.0,0.05805305]
[1673748342409,1.854501,20780.0,20779.0,0.05805305]
[1673748342952,2.154501,20780.0,20779.0,0.05805305]
[1673748343979,2.454501,20780.0,20779.0,0.05805305]
[1673748344197,2.154501,20780.0,20779.0,0.05805305]
[1673748344738,3.52116118,20780.0,20779.0,0.0384314]
[1673748344987,3.8793871,20780.0,20779.0,0.0384314]
[1673748345257,3.66396203,20780.0,20779.0,0.0384314]
[1673748345517,3.66396203,20780.0,20777.0,0.00484389]
[1673748345518,3.83068268,20780.0,20777.0,0.00484389]
[1673748345771,0.34739096,20778.0,20777.0,0.00484389]
[1673748346021,3.18179465,20778.0,20777.0,0.00484389]
[1673748346281,3.69530865,20778.0,20777.0,8.9e-07]
[1673748346529,3.84999932,20778.0,20775.0,0.00547026]
[1673748346793,0.157,20776.0,20775.0,0.00547026]
[1673748347047,0.3983,20775.0,20774.0,0.00551016]
[1673748347418,2.26171669,20775.0,20774.0,0.00551016]
[1673748347576,1.97191669,20775.0,20774.0,0.00551016]
[1673748348090,2.42721669,20775.0,20774.0,0.00551016]
[1673748348374,2.90131886,20775.0,20774.0,0.00551016]
[1673748348628,2.99231886,20775.0,20774.0,0.00551016]
[1673748349142,2.90131886,20775.0,20774.0,0.00551016]
[1673748349655,2.90131886,20775.0,20774.0,0.00428538]
[1673748350156,2.99231886,20775.0,20774.0,0.00428538]
[1673748350431,2.90131886,20775.0,20774.0,0.00428538]
[1673748350712,2.99231886,20775.0,20774.0,0.00428538]
[1673748350986,2.42721669,20775.0,20774.0,0.00428538]
[1673748351240,2.51821669,20775.0,20774.0,0.00428538]
[1673748351478,2.42721669,20775.0,20774.0,0.00428538]
[1673748351751,2.51821669,20775.0,20774.0,0.00428538]
[1673748352007,2.84285678,20775.0,20774.0,0.00428538]
[1673748352317,2.93385678,20775.0,20774.0,0.00428538]
[1673748352575,1.51211669,20775.0,20774.0,0.00428538]
[1673748353644,1.82061669,20775.0,20774.0,0.00428538]
[1673748359207,0.091,20775.0,20774.0,0.34895133]
[1673748359495,0.091,20775.0,20774.0,0.61427424]
[1673748359764,0.091,20775.0,20774.0,0.42354829]
[1673748360039,0.50051163,20778.0,20774.0,0.7830399]
[1673748360309,0.022,20775.0,20774.0,0.56582538]
[1673748360565,0.01922163,20778.0,20774.0,0.79350538]
[1673748360822,0.01922163,20778.0,20776.0,0.0783]
[1673748361092,0.01922163,20778.0,20777.0,0.229716]
[1673748361338,0.01922163,20778.0,20777.0,0.38306916]
[1673748361603,0.02722163,20778.0,20777.0,0.38306916]
[1673748362624,0.01922163,20778.0,20777.0,0.38406916]
[1673748362947,0.04122163,20778.0,20777.0,0.38306916]
[1673748363132,0.54449963,20778.0,20777.0,0.38406916]
[1673748363388,0.50049963,20778.0,20777.0,0.38306916]
[1673748363651,0.01922163,20778.0,20777.0,0.38406916]
[1673748363900,0.04122163,20778.0,20777.0,0.38406916]
[1673748366200,1.68153632,20778.0,20777.0,0.001]
[1673748366467,1.98480302,20778.0,20777.0,0.001]
[1673748366759,2.48605586,20778.0,20777.0,0.001]
[1673748367214,3.44909298,20778.0,20777.0,0.001]
[1673748367507,3.7098436,20778.0,20777.0,0.001]
[1673748367794,3.42258261,20778.0,20777.0,0.001]
[1673748368054,3.42258261,20778.0,20774.0,0.00428538]
[1673748368055,0.1,20777.0,20774.0,0.00428538]
[1673748368280,1.64118941,20776.0,20774.0,0.00428538]
[1673748368535,0.409856,20775.0,20774.0,0.00428538]
[1673748368788,0.89111864,20775.0,20774.0,0.00428538]
[1673748369026,0.791203,20775.0,20774.0,0.00428538]
[1673748369278,0.481347,20775.0,20774.0,0.00428538]
[1673748369531,0.481347,20775.0,20774.0,0.53295656]
[1673748370551,0.571347,20775.0,20774.0,0.53295656]
[1673748371559,0.571347,20775.0,20774.0,0.58692599]
[1673748371819,0.571347,20775.0,20774.0,0.53295656]
[1673748372075,0.09,20775.0,20774.0,0.53295656]
[1673748373348,0.09,20775.0,20774.0,0.61105656]
[1673748373606,0.09,20775.0,20774.0,0.53295656]
[1673748377449,0.08283798,20775.0,20774.0,0.53295656]
[1673748377735,0.08283798,20775.0,20774.0,0.60258599]
[1673748378018,0.08283798,20775.0,20774.0,0.82732799]
[1673748378503,0.08283798,20775.0,20774.0,0.37342681]
[1673748378758,0.08283798,20775.0,20774.0,1.02085276]
[1673748379017,0.01922163,20778.0,20775.0,0.1]
[1673748379268,0.01922163,20778.0,20777.0,0.1568]
[1673748379521,0.01922163,20778.0,20777.0,0.381503]
[1673748381071,0.01922163,20778.0,20777.0,1.160204]
[1673748381330,0.35926218,20783.0,20777.0,1.552204]
[1673748381593,0.01063778,20784.0,20782.0,0.1564]
[1673748381863,0.01063778,20784.0,20783.0,0.98571055]
[1673748382128,0.01063778,20784.0,20783.0,0.76108355]
[1673748382380,0.01063778,20784.0,20783.0,0.86460603]
[1673748383954,0.01063778,20784.0,20783.0,0.95660603]
[1673748384221,0.01063778,20784.0,20783.0,0.86460603]
[1673748384489,0.01063778,20784.0,20783.0,0.95760603]
[1673748384745,0.01063778,20784.0,20783.0,0.093]
[1673748384987,0.49177678,20784.0,20783.0,0.185]
[1673748385259,0.80163278,20784.0,20783.0,0.185]
[1673748385524,1.43632739,20784.0,20783.0,0.185]
[1673748385791,1.43632739,20784.0,20776.0,0.37944535]
[1673748385792,2.43363665,20784.0,20776.0,0.37944535]
[1673748386123,0.02856,20779.0,20776.0,0.37944535]
[1673748386292,0.309856,20778.0,20776.0,0.37944535]
[1673748386549,0.54918069,20778.0,20776.0,0.37944535]
[1673748387067,0.481278,20778.0,20774.0,0.00428538]
[1673748387283,0.481278,20778.0,20775.0,0.3571223]
[1673748387284,0.54918069,20778.0,20775.0,0.3571223]
[1673748387604,0.497278,20778.0,20775.0,0.3571223]
[1673748387855,0.54918069,20778.0,20775.0,0.3571223]
[1673748388120,0.481278,20778.0,20775.0,0.3571223]
[1673748388392,0.309856,20777.0,20775.0,0.3571223]
[1673748388668,0.481315,20777.0,20775.0,0.3571223]
[1673748389659,1.038558,20778.0,20775.0,0.43792797]
[1673748389915,0.962558,20778.0,20775.0,0.62865392]
[1673748390129,0.076,20777.0,20775.0,0.62865392]
[1673748390420,0.076,20777.0,20775.0,0.43792797]
[1673748390925,0.48128,20778.0,20775.0,0.43792797]
[1673748391176,0.55728,20778.0,20775.0,0.43792797]
[1673748391445,0.481274,20779.0,20775.0,0.51642797]
[1673748391723,0.076,20777.0,20775.0,0.35003162]
[1673748391970,0.076,20777.0,20776.0,0.303216]
[1673748392517,0.076,20777.0,20776.0,0.75913772]
[1673748392723,0.076,20778.0,20776.0,0.75913772]
[1673748393003,0.96248,20780.0,20777.0,0.0785]
[1673748393868,0.132,20778.0,20777.0,0.0785]
[1673748395338,0.481256,20779.0,20777.0,0.07838276]
[1673748395588,0.134,20778.0,20777.0,0.07838276]
[1673748395861,0.615278,20778.0,20774.0,0.00428538]
[1673748396116,0.37775869,20777.0,20774.0,0.00428538]
[1673748396382,0.79118,20776.0,20774.0,0.00428538]
[1673748396624,0.481324,20776.0,20774.0,0.00428538]
[1673748396883,0.309856,20775.0,20774.0,0.00428538]
[1673748397140,0.481347,20775.0,20774.0,0.00428538]
[1673748398179,0.481347,20775.0,20774.0,0.3579473]
[1673748398431,0.62483202,20777.0,20774.0,0.44303109]
[1673748398682,0.008,20775.0,20774.0,0.63335704]
[1673748398934,0.008,20775.0,20774.0,0.44263109]
[1673748399443,0.481323,20777.0,20774.0,0.44263109]
[1673748399703,0.489323,20777.0,20775.0,0.04441801]
[1673748399961,0.481323,20777.0,20775.0,0.04441801]
[1673748401429,0.489323,20777.0,20775.0,0.04441801]
[1673748401688,0.481323,20777.0,20775.0,0.04441801]
[1673748401932,0.557323,20777.0,20774.0,0.3575473]
[1673748403413,0.481323,20777.0,20774.0,0.3575473]
[1673748403671,0.481323,20777.0,20775.0,0.42082231]
[1673748403924,0.481323,20777.0,20775.0,0.46344798]
[1673748404435,0.489263,20777.0,20775.0,0.42082231]
[1673748404690,0.481263,20777.0,20775.0,0.42082231]
[1673748404948,0.557263,20777.0,20775.0,0.42082231]
[1673748407183,0.076,20777.0,20775.0,0.42082231]
[1673748407701,0.076,20777.0,20776.0,0.224718]
[1673748407918,0.076,20777.0,20776.0,0.59008328]
[1673748408165,0.076,20777.0,20776.0,0.36536528]
[1673748408940,0.14350902,20779.0,20776.0,0.36536528]
[1673748409204,0.14350902,20779.0,20776.0,0.6490023]
[1673748409485,0.14350902,20779.0,20776.0,0.45827635]
[1673748409749,0.35877254,20780.0,20777.0,0.224701]
[1673748409997,0.35877254,20780.0,20777.0,0.19072595]
[1673748410258,0.35877254,20780.0,20776.0,1.01770035]
[1673748410520,0.14350902,20779.0,20777.0,0.48449136]
[1673748410777,0.27550902,20779.0,20777.0,0.48449136]
[1673748411035,0.14350902,20779.0,20777.0,0.48449136]
[1673748411837,0.27750902,20779.0,20777.0,0.48449136]
[1673748412362,0.109,20779.0,20777.0,0.6370155]
[1673748412627,0.25250902,20779.0,20777.0,0.6370155]
[1673748414162,0.46777254,20779.0,20777.0,0.6370155]
[1673748414954,0.14350902,20778.0,20776.0,0.25]
[1673748415212,0.14350902,20778.0,20776.0,0.66528605]
[1673748415721,0.42667523,20778.0,20776.0,0.25]
[1673748415959,0.35877254,20777.0,20776.0,0.25]
[1673748416231,1.00642052,20777.0,20776.0,0.25]
[1673748417740,1.42683027,20777.0,20776.0,0.25]
[1673748418061,1.13942052,20777.0,20776.0,0.25]
[1673748418278,1.28338312,20777.0,20776.0,0.25]
[1673748420062,1.28338312,20777.0,20774.0,0.38746381]
[1673748420311,0.97352712,20777.0,20774.0,0.38746381]
[1673748420816,0.97352712,20777.0,20775.0,0.48591556]
[1673748420817,0.614301,20777.0,20775.0,0.48591556]
[1673748421063,0.6252636,20777.0,20775.0,0.48591556]
[1673748421314,0.6332636,20777.0,20775.0,0.48591556]
[1673748422059,0.481301,20777.0,20775.0,0.48591556]
[1673748422329,0.542301,20777.0,20775.0,0.48591556]
[1673748422576,0.6862636,20777.0,20774.0,0.00388538]
[1673748423089,0.1439626,20776.0,20774.0,0.00388538]
[1673748423334,0.6252916,20776.0,20775.0,0.25]
[1673748423588,0.84055512,20776.0,20775.0,0.25]
[1673748424053,0.69659252,20776.0,20775.0,0.25]
[1673748424446,0.70459252,20776.0,20775.0,0.25]
[1673748424602,2.20255678,20776.0,20775.0,0.25]
[1673748424849,1.6104578,20776.0,20775.0,0.25]
[1673748425103,2.28601259,20776.0,20775.0,0.25]
[1673748426094,2.28601259,20776.0,20774.0,0.00388538]
[1673748426095,2.28601259,20776.0,20774.0,0.25388538]
[1673748426357,0.76065661,20775.0,20774.0,0.25388538]
[1673748426616,0.76971826,20775.0,20774.0,0.25388538]
[1673748426886,0.69761313,20775.0,20774.0,0.00388538]
[1673748427134,0.14417265,20775.0,20774.0,0.25809994]
[1673748427418,0.98596139,20776.0,20775.0,0.54327901]
[1673748427419,0.008,20776.0,20775.0,0.54327901]
[1673748427671,0.008,20776.0,20775.0,0.76800901]
[1673748427938,0.008,20776.0,20775.0,0.76800701]
[1673748428207,0.008,20776.0,20775.0,0.92385115]
[1673748428711,0.008,20776.0,20775.0,0.91385115]
[1673748429537,0.061,20776.0,20775.0,0.91385115]
[1673748430329,0.061,20776.0,20775.0,0.75800701]
[1673748430588,0.061,20776.0,20775.0,0.303228]
[1673748430894,0.061,20776.0,20775.0,0.784575]
[1673748431140,0.061,20776.0,20775.0,1.21564596]
[1673748431389,0.061,20776.0,20775.0,1.20564596]
[1673748431644,0.061,20776.0,20775.0,1.43725054]
[1673748432225,0.061,20776.0,20775.0,1.00617958]
[1673748432423,0.061,20776.0,20775.0,1.38467958]
[1673748432678,0.061,20776.0,20775.0,1.82631803]
[1673748433457,0.14417265,20780.0,20775.0,1.68407958]
[1673748433706,0.14417265,20780.0,20776.0,0.19072595]
[1673748433961,0.14417265,20780.0,20779.0,0.0781]
[1673748434222,0.14417265,20780.0,20779.0,0.0681]
[1673748434510,0.36043878,20781.0,20779.0,0.774028]
[1673748434793,0.36043878,20781.0,20779.0,0.7308044]
[1673748435048,0.36043878,20781.0,20780.0,0.224661]
[1673748435317,0.14417265,20781.0,20780.0,0.224661]
[1673748435567,0.14417265,20781.0,20780.0,0.22466]
[1673748435879,0.16946188,20781.0,20779.0,0.7308044]
[1673748436150,0.15346188,20781.0,20780.0,0.481231]
[1673748436406,0.15717265,20781.0,20779.0,0.7308044]
[1673748436669,0.14417265,20781.0,20779.0,1.09553558]
[1673748436922,0.15917265,20781.0,20780.0,0.22466]
[1673748437179,0.14417265,20781.0,20779.0,1.09553558]
[1673748437911,0.14417265,20780.0,20777.0,0.95562191]
[1673748438170,0.06790269,20779.0,20777.0,0.47433591]
[1673748438427,0.21207534,20779.0,20777.0,0.47433591]
[1673748438685,0.36043878,20779.0,20777.0,0.47433591]
[1673748438940,0.36043878,20779.0,20776.0,0.4512]
[1673748439190,0.0084458,20778.0,20776.0,0.4512]
[1673748439441,0.15261845,20778.0,20776.0,0.4512]
[1673748439730,0.15261845,20778.0,20775.0,0.4566665]
[1673748440030,0.15261845,20778.0,20776.0,0.48811193]
[1673748440246,0.15261845,20778.0,20777.0,0.224695]
[1673748440505,0.5037348,20778.0,20776.0,0.48811193]
[1673748440740,0.0224458,20778.0,20776.0,0.54516166]
[1673748441247,0.0084458,20778.0,20776.0,0.54516166]
[1673748441491,0.014,20778.0,20777.0,0.224701]
[1673748441747,0.62542865,20779.0,20777.0,0.64076747]
[1673748441990,0.014,20778.0,20777.0,0.41606647]
[1673748442249,0.014,20778.0,20777.0,0.46337809]
[1673748442485,0.014,20778.0,20777.0,0.68807909]
[1673748442737,0.1545936,20779.0,20777.0,0.41606647]
[1673748442991,0.38485973,20779.0,20777.0,0.41606647]
[1673748443258,0.1545936,20779.0,20777.0,0.41606647]
[1673748444047,0.37085973,20779.0,20777.0,0.41606647]
[1673748444286,0.014,20778.0,20777.0,0.41606647]
[1673748444534,0.1545936,20779.0,20777.0,0.41606647]
[1673748444777,0.1685936,20779.0,20777.0,0.41606647]
[1673748445051,0.37085973,20779.0,20777.0,0.41606647]
[1673748445301,0.014,20778.0,20777.0,0.41606647]
[1673748445554,0.37085973,20779.0,20777.0,0.41606647]
[1673748445767,0.38485973,20779.0,20777.0,0.41606647]
[1673748446009,0.37085973,20779.0,20777.0,0.41606647]
[1673748446260,0.014,20778.0,20777.0,0.41606647]
[1673748447024,0.01042095,20779.0,20777.0,0.41606647]
[1673748447295,0.1685936,20779.0,20777.0,0.41606647]
[1673748447534,0.1545936,20779.0,20777.0,0.41606647]
[1673748447791,0.014,20778.0,20775.0,0.559832]
[1673748448032,0.06790269,20778.0,20776.0,0.42146574]
[1673748448279,0.38485973,20779.0,20776.0,0.42146574]
[1673748448522,0.00974495,20778.0,20776.0,0.42146574]
[1673748448769,0.02374495,20778.0,20776.0,0.42146574]
[1673748449018,0.00974495,20778.0,20776.0,0.50659907]
[1673748450516,0.02374495,20778.0,20776.0,0.50659907]
[1673748450770,0.014,20778.0,20776.0,0.50659907]
[1673748451026,0.014,20778.0,20777.0,0.49392695]
[1673748451289,0.014,20778.0,20777.0,1.24652503]
[1673748451800,0.014,20778.0,20777.0,0.94652503]
[1673748452050,0.36043878,20782.0,20778.0,0.0785]
[1673748452300,0.3684601,20782.0,20779.0,0.0785]
[1673748452564,0.14417265,20781.0,20779.0,0.26922595]
[1673748452851,0.14417265,20781.0,20779.0,0.0785]
[1673748453370,0.3684601,20782.0,20779.0,0.0785]
[1673748453611,0.016,20781.0,20779.0,0.0785]
[1673748454388,0.016,20781.0,20780.0,0.44411662]
[1673748454945,0.16017265,20781.0,20780.0,0.44411662]
[1673748455409,0.016,20781.0,20780.0,0.44411662]
[1673748456167,0.3684601,20782.0,20779.0,0.0785]
[1673748456411,0.15717265,20781.0,20779.0,0.0785]
[1673748456667,0.16836332,20781.0,20778.0,0.35281383]
[1673748456918,0.38462945,20781.0,20778.0,0.35281383]
[1673748457191,0.37162945,20781.0,20778.0,0.35281383]
[1673748457446,0.17136332,20781.0,20778.0,0.35281383]
[1673748457944,0.15536332,20781.0,20778.0,0.35281383]
[1673748458215,0.17036332,20781.0,20778.0,0.35281383]
[1673748459000,0.02619067,20781.0,20779.0,0.224671]
[1673748459256,0.02619067,20781.0,20780.0,0.224662]
[1673748459510,0.015,20781.0,20778.0,0.35281383]
[1673748459761,0.015,20781.0,20779.0,0.47041253]
[1673748460033,0.3696889,20782.0,20780.0,0.224661]
[1673748460297,0.016,20781.0,20779.0,0.47041253]
[1673748460520,0.3696889,20782.0,20779.0,0.47041253]
[1673748460782,0.15917265,20781.0,20779.0,0.47041253]
[1673748461022,0.14417265,20781.0,20779.0,0.47041253]
[1673748462247,0.15432438,20781.0,20779.0,0.47041253]
[1673748462764,0.17032438,20781.0,20779.0,0.47041253]
[1673748463273,0.38659051,20781.0,20779.0,0.47041253]
[1673748463802,0.17032438,20781.0,20779.0,0.47041253]
[1673748464050,0.17032438,20781.0,20779.0,0.53993494]
[1673748464555,0.17032438,20781.0,20779.0,0.47041253]
[1673748465304,0.38659051,20781.0,20779.0,0.47041253]
[1673748465546,0.17032438,20781.0,20779.0,0.47041253]
[1673748465794,0.38659051,20781.0,20779.0,0.47041253]
[1673748466295,0.16017265,20781.0,20779.0,0.47041253]
[1673748466542,0.16017265,20781.0,20779.0,0.62506827]
[1673748467308,0.37643878,20781.0,20780.0,0.3673695]
[1673748468338,0.36043878,20781.0,20776.0,0.22033845]
[1673748468585,0.14416197,20779.0,20776.0,0.40842074]
[1673748468836,0.21206466,20779.0,20776.0,0.40842074]
[1673748469138,0.21206466,20779.0,20774.0,0.67581726]
[1673748469357,0.06790269,20778.0,20774.0,0.38085364]
[1673748469608,0.06790269,20778.0,20774.0,0.77899121]
[1673748469871,0.01102083,20777.0,20774.0,0.77899121]
[1673748470143,0.01102083,20777.0,20774.0,0.63675276]
[1673748470144,0.07892352,20777.0,20774.0,0.63675276]
[1673748470440,0.01102083,20777.0,20774.0,0.40202295]
[1673748471124,0.06790269,20777.0,20774.0,0.00388538]
[1673748471383,0.14416197,20776.0,20774.0,0.00388538]
[1673748471637,1.41671197,20775.0,20774.0,0.00388538]
[1673748471882,1.10685597,20775.0,20774.0,0.00388538]
[1673748472144,1.77711689,20775.0,20774.0,0.00388538]
[1673748472406,1.94244153,20775.0,20774.0,0.00388538]
[1673748472653,1.79219858,20775.0,20774.0,0.00388538]
[1673748472926,2.20336556,20775.0,20774.0,0.00388538]
[1673748473160,1.98399434,20775.0,20774.0,0.00388538]
[1673748473419,1.93084668,20775.0,20774.0,0.00388538]
[1673748473671,1.5577182,20775.0,20774.0,0.00388538]
[1673748473955,1.2478622,20775.0,20774.0,0.00388538]
[1673748474181,1.46399068,20775.0,20774.0,0.00388538]
[1673748474415,1.1148622,20775.0,20774.0,0.00388538]
[1673748474678,1.62977134,20775.0,20774.0,0.00388538]
[1673748474923,1.33099279,20775.0,20774.0,0.00388538]
[1673748475203,1.46592308,20775.0,20774.0,0.00388538]
[1673748475507,3.13137937,20775.0,20774.0,0.00388538]
[1673748475696,3.26439272,20775.0,20774.0,0.00388538]
[1673748475946,3.30373699,20775.0,20774.0,0.00388538]
[1673748476209,1.86137227,20775.0,20774.0,0.07865538]
[1673748476470,1.56034224,20775.0,20774.0,0.00388538]
[1673748476732,1.25048624,20775.0,20774.0,0.00388538]
[1673748477469,2.20716379,20775.0,20774.0,0.00388538]
[1673748477719,2.21539532,20775.0,20774.0,0.00388538]
[1673748477959,2.55441392,20775.0,20774.0,0.00388538]
[1673748478448,3.31011428,20775.0,20774.0,0.00349685]
[1673748478967,3.19340093,20775.0,20774.0,0.00349685]
[1673748479235,2.59022309,20775.0,20774.0,0.00349685]
[1673748480532,3.55335561,20775.0,20774.0,0.00349685]
[1673748480754,3.19344381,20775.0,20774.0,0.00349685]
[1673748481008,3.55313327,20775.0,20774.0,0.00349685]
[1673748481258,4.01468356,20775.0,20774.0,0.00349685]
[1673748481529,2.80779401,20775.0,20774.0,0.00349685]
[1673748482251,3.77093228,20775.0,20774.0,0.00349685]
[1673748482501,3.05156503,20775.0,20774.0,0.00349685]
[1673748482994,3.05165153,20775.0,20774.0,0.00349685]
[1673748483234,0.1,20774.0,20770.0,0.35961611]
[1673748483484,1.1065629,20773.0,20770.0,0.35961611]
[1673748483729,0.409856,20772.0,20770.0,0.00330086]
[1673748483986,0.64933369,20772.0,20770.0,0.00330086]
[1673748484302,0.45615869,20771.0,20770.0,0.00330086]
[1673748484551,0.309856,20771.0,20770.0,0.00330086]
[1673748485052,0.309856,20771.0,20770.0,0.45541428]
[1673748485346,0.325856,20771.0,20770.0,0.05267385]
[1673748485823,0.325856,20771.0,20769.0,0.47323372]
[1673748485825,0.016,20771.0,20770.0,0.49265691]
[1673748488189,0.57594,20771.0,20769.0,0.10520867]
[1673748488396,0.488356,20770.0,20769.0,0.10520867]
[1673748488645,0.969819,20770.0,20769.0,0.10520867]
[1673748488897,0.559963,20770.0,20769.0,0.10520867]
[1673748489180,1.08336924,20770.0,20769.0,0.10520867]
[1673748489923,0.869819,20770.0,20769.0,0.10520867]
[1673748490436,0.48958824,20770.0,20769.0,0.10520867]
[1673748490700,0.02312524,20770.0,20769.0,0.10520867]
[1673748491201,0.10229524,20770.0,20769.0,0.10520867]
[1673748492251,0.18079524,20770.0,20769.0,0.10520867]
[1673748492512,0.482526,20770.0,20769.0,0.10520867]
[1673748492766,0.49048181,20770.0,20769.0,0.10520867]
[1673748493339,0.97194481,20770.0,20769.0,0.10520867]
[1673748493858,0.963989,20770.0,20769.0,0.10520867]
[1673748494106,0.97527512,20770.0,20769.0,0.10520867]
[1673748494910,0.963989,20770.0,20769.0,0.10020867]
[1673748496252,0.97401305,20770.0,20769.0,0.10020867]
[1673748497033,0.963989,20770.0,20769.0,0.10020867]
[1673748497301,0.97275923,20770.0,20769.0,0.10020867]
[1673748497556,0.963989,20770.0,20769.0,0.10020867]
[1673748498071,1.07445114,20770.0,20769.0,0.10020867]
[1673748498351,1.063989,20770.0,20769.0,0.10020867]
[1673748498599,0.963989,20770.0,20769.0,0.10020867]
[1673748498871,1.25146862,20770.0,20769.0,0.10020867]
[1673748499134,1.62996862,20770.0,20769.0,0.08824942]
[1673748500452,2.80282503,20770.0,20769.0,0.08824942]
[1673748500707,2.18696912,20770.0,20769.0,0.08824942]
[1673748500998,1.82769069,20770.0,20769.0,0.08824942]
[1673748501507,1.81269069,20770.0,20769.0,0.08824942]
[1673748501509,2.21720522,20770.0,20769.0,0.08824942]
[1673748501759,2.20220522,20770.0,20769.0,0.08824942]
[1673748502065,2.55371675,20770.0,20769.0,0.08824942]
[1673748502314,2.33820522,20770.0,20769.0,0.08824942]
[1673748503099,2.20220522,20770.0,20769.0,0.08824942]
[1673748503347,2.41771675,20770.0,20769.0,0.08824942]
[1673748503598,2.89181892,20770.0,20769.0,0.08824942]
[1673748503835,3.02781892,20770.0,20769.0,0.08824942]
[1673748504046,3.02751957,20770.0,20769.0,0.08824942]
[1673748504304,2.81200804,20770.0,20769.0,0.08824942]
[1673748504556,2.33790587,20770.0,20769.0,0.08824942]
[1673748505060,2.30766977,20770.0,20769.0,0.08824942]
[1673748505571,2.55328998,20770.0,20769.0,0.08824942]
[1673748506349,2.69735623,20770.0,20769.0,0.08824942]
[1673748506852,2.55333448,20770.0,20769.0,0.05211853]
[1673748507121,3.94674639,20770.0,20769.0,0.05211853]
[1673748507383,2.983299,20770.0,20769.0,0.05211853]
[1673748507680,3.28274593,20770.0,20769.0,0.05211853]
[1673748507892,4.27450664,20770.0,20769.0,0.05211853]
[1673748508145,3.97505816,20770.0,20769.0,0.05211853]
[1673748508664,3.68778353,20770.0,20769.0,0.05211853]
[1673748508921,3.32810037,20770.0,20769.0,0.05211853]
[1673748510207,3.08248016,20770.0,20769.0,0.05211853]
[1673748510454,3.44179759,20770.0,20769.0,0.05211853]
[1673748510721,3.72924086,20770.0,20769.0,0.05211853]
[1673748511010,3.44179759,20770.0,20769.0,0.05211853]
[1673748511268,4.20309946,20770.0,20769.0,0.05211853]
[1673748511550,3.44200443,20770.0,20769.0,0.05211853]
[1673748511805,3.08248016,20770.0,20769.0,0.05211853]
[1673748512311,3.44199883,20770.0,20769.0,0.05211853]
[1673748512615,3.05392016,20770.0,20769.0,0.05211853]
[1673748513090,3.07185016,20770.0,20769.0,0.05211853]
[1673748513339,3.54595233,20770.0,20769.0,0.05211853]
[1673748513847,3.46795233,20770.0,20769.0,0.05211853]
[1673748514098,2.99385016,20770.0,20769.0,0.05211853]
[1673748514603,3.35346953,20770.0,20769.0,0.05211853]
[1673748515119,2.99385016,20770.0,20769.0,0.05211853]
[1673748515635,3.32633189,20770.0,20769.0,0.05211853]
[1673748515900,3.08298016,20770.0,20769.0,0.05211853]
[1673748516161,3.55708233,20770.0,20769.0,0.05211853]
[1673748516762,3.08298016,20770.0,20769.0,0.05211853]
[1673748516933,2.94698016,20770.0,20769.0,0.05211853]
[1673748517182,3.51383029,20770.0,20769.0,0.05211853]
[1673748517439,3.08298016,20770.0,20769.0,0.05211853]
[1673748518211,3.06329435,20770.0,20769.0,0.05211853]
[1673748518464,3.04592016,20770.0,20769.0,0.05211853]
[1673748519004,3.04592016,20770.0,20769.0,0.04595356]
[1673748519504,3.47677029,20770.0,20769.0,0.04595356]
[1673748520009,3.05518505,20770.0,20769.0,0.04595356]
[1673748520264,2.40305275,20770.0,20769.0,0.04595356]
[1673748522583,2.79264279,20770.0,20769.0,0.04595356]
[1673748522847,2.33254847,20770.0,20769.0,0.04595356]
[1673748523120,2.7633986,20770.0,20769.0,0.04595356]
[1673748523628,2.8418986,20770.0,20769.0,0.04595356]
[1673748524189,2.1203112,20770.0,20769.0,0.04595356]
[1673748524453,2.0418112,20770.0,20769.0,0.04595356]
[1673748524663,1.7319552,20770.0,20769.0,0.04595356]
[1673748524930,2.09224433,20770.0,20769.0,0.04595356]
[1673748525211,1.7319552,20770.0,20769.0,0.04595356]
[1673748525718,2.0418112,20770.0,20769.0,0.04595356]
[1673748527074,2.47266133,20770.0,20769.0,0.04595356]
[1673748527263,2.40228953,20770.0,20769.0,0.04595356]
[1673748527548,1.7319552,20770.0,20769.0,0.04595356]
[1673748529348,2.0418112,20770.0,20769.0,0.04595356]
[1673748533596,2.47266133,20770.0,20769.0,0.04595356]
[1673748534113,2.0418112,20770.0,20769.0,0.04595356]
[1673748534630,2.24803875,20770.0,20769.0,0.04595356]
[1673748534886,2.47266133,20770.0,20769.0,0.04595356]
[1673748536146,2.4633986,20770.0,20769.0,0.04595356]
[1673748536394,2.7633986,20770.0,20769.0,0.04595356]
[1673748536643,2.33254847,20770.0,20769.0,0.04595356]
[1673748537355,2.15133649,20770.0,20769.0,0.04595356]
[1673748537857,2.58412562,20770.0,20769.0,0.04595356]
[1673748538362,2.45133649,20770.0,20769.0,0.04595356]
[1673748539136,2.33254847,20770.0,20769.0,0.04089365]
[1673748539394,2.03254847,20770.0,20769.0,0.04089365]
[1673748539739,2.46536361,20770.0,20769.0,0.04089365]
[1673748539925,2.46536361,20770.0,20769.0,0.04113365]
[1673748540185,2.47373314,20770.0,20769.0,0.04113365]
[1673748543011,2.46536361,20770.0,20769.0,0.04113365]
[1673748543288,2.47365457,20770.0,20769.0,0.04113365]
[1673748544515,3.52603511,20770.0,20769.0,0.04113365]
[1673748544761,4.01074151,20770.0,20769.0,0.0244653]
[1673748545009,3.79802713,20770.0,20769.0,0.0244653]
[1673748545532,3.87692713,20770.0,20769.0,0.0244653]
[1673748548511,3.90548713,20770.0,20769.0,0.0244653]
[1673748549785,3.90548713,20770.0,20769.0,0.01099451]
[1673748551326,3.91398713,20770.0,20769.0,0.01099451]
[1673748552567,3.91398713,20770.0,20769.0,5.1e-07]
[1673748552814,0.0789,20769.0,20768.0,0.0095312]
[1673748553067,3.72888712,20769.0,20768.0,0.0095312]
[1673748553311,4.31073514,20769.0,20768.0,0.0095312]
[1673748553562,4.31073514,20769.0,20760.0,0.01132728]
[1673748553563,0.1,20768.0,20760.0,0.01132728]
[1673748553816,0.10746,20764.0,20760.0,0.01132728]
[1673748554069,0.10746,20764.0,20760.0,0.00632728]
[1673748554070,3.27873967,20764.0,20760.0,0.00632728]
[1673748554327,0.79730239,20763.0,20760.0,0.00632728]
[1673748554580,0.43268118,20761.0,20760.0,0.00632728]